bitfinex-derivatives/quotes_SOLF0:USTF0_20250821
["timestamp","ask_amount","ask_price","bid_price","bid_amount"]
[1755772191256,2.54379146,184.33,184.27,2.95]
[1755772191463,2.54379146,184.33,184.28,5.4267]
[1755772191763,2.36379146,184.35,184.29,2.95]
[1755772191963,2.36379146,184.35,184.29,8.3763]
[1755772193564,2.36379146,184.35,184.3,5.426]
[1755772193762,2.36379146,184.37,184.31,2.91]
[1755772194465,2.36379146,184.37,184.31,8.3357]
[1755772195265,0.18,184.34,184.28,2.91]
[1755772195861,0.18,184.34,184.28,8.3365]
[1755772197065,0.18,184.34,184.28,2.91]
[1755772197763,0.18,184.34,184.28,8.3367]
[1755772197967,0.18,184.34,184.28,2.91]
[1755772198368,2.36379146,184.35,184.28,2.91]
[1755772198670,2.36379146,184.35,184.29,5.4264]
[1755772199169,2.36379146,184.35,184.28,8.3367]
[1755772201172,2.54379146,184.35,184.28,8.3367]
[1755772201375,2.54379146,184.35,184.28,2.91]
[1755772202463,2.54379146,184.35,184.28,8.3366]
[1755772202668,2.36379146,184.35,184.28,2.91]
[1755772202865,2.36379146,184.37,184.28,2.91]
[1755772203169,0.18,184.38,184.32,2.91]
[1755772203474,0.18,184.36,184.32,2.91]
[1755772204372,0.18,184.36,184.3,5.4259]
[1755772204572,2.36379146,184.39,184.33,2.91]
[1755772205777,2.36379146,184.39,184.33,8.3352]
[1755772205974,2.36379146,184.39,184.33,2.91]
[1755772206178,0.18,184.36,184.3,5.426]
[1755772206778,0.18,184.36,184.29,8.3363]
[1755772207477,0.18,184.36,184.3,5.4261]
[1755772208067,2.36379146,184.33,184.27,5.4269]
[1755772208278,2.36379146,184.33,184.27,8.3369]
[1755772208776,0.18,184.36,184.29,2.91]
[1755772208978,2.36379146,184.35,184.29,2.91]
[1755772209175,0.18,184.36,184.25,2.36379146]
[1755772209370,2.36379146,184.37,184.28,2.91]
[1755772210076,0.18,184.36,184.28,2.91]
[1755772210377,0.18,184.36,184.29,5.4262]
[1755772210576,0.18,184.36,184.3,2.91]
[1755772212577,2.36379146,184.35,184.31,2.91]
[1755772213077,2.54379146,184.35,184.31,2.91]
[1755772214280,2.54379146,184.35,184.32,2.91]
[1755772214477,2.36379146,184.41,184.24,4.54061493]
[1755772214478,2.36379146,184.38,184.28,2.91]
[1755772214684,2.36379146,184.36,184.28,2.91]
[1755772214872,2.36379146,184.36,184.3,5.426]
[1755772215376,2.54379146,184.36,184.29,2.91]
[1755772215583,2.54379146,184.34,184.3,2.91]
[1755772215975,2.54379146,184.34,184.28,5.4267]
[1755772216175,2.36379146,184.34,184.3,2.91]
[1755772216378,2.36379146,184.34,184.25,2.91]
[1755772216683,2.36379146,184.32,184.25,2.91]
[1755772217176,2.36379146,184.3,184.22,8.3383]
[1755772217974,2.36379146,184.3,184.24,2.91]
[1755772218277,0.19,184.31,184.21,369.22061493]
[1755772218278,2.36379146,184.28,184.25,2.91]
[1755772218671,2.36379146,184.28,184.21,367.59]
[1755772218672,0.18,184.27,184.21,367.59]
[1755772218980,0.18,184.25,184.21,2.91]
[1755772219182,2.36379146,184.24,184.21,2.91]
[1755772219383,2.36379146,184.24,184.22,2.91]
[1755772220075,2.36379146,184.27,184.18,2.91]
[1755772220478,2.36379146,184.27,184.2,2.91]
[1755772220681,2.36379146,184.25,184.2,2.91]
[1755772220878,0.18,184.24,184.17,8.3398]
[1755772221277,2.36379146,184.23,184.17,8.3398]
[1755772222081,2.36379146,184.23,184.19,2.91]
[1755772222278,2.36379146,184.23,184.2,2.91]
[1755772222477,2.36379146,184.23,184.21,2.91]
[1755772222984,2.36379146,184.23,184.2,2.94]
[1755772223485,2.36379146,184.23,184.22,2.94]
[1755772223679,2.36379146,184.25,184.22,2.94]
[1755772224281,2.36379146,184.25,184.17,7.48061493]
[1755772224580,2.36379146,184.25,184.2,5.4289]
[1755772224882,2.36379146,184.25,184.22,2.94]
[1755772225083,2.36379146,184.27,184.23,2.94]
[1755772225285,2.55379146,184.27,184.23,2.94]
[1755772225779,2.55379146,184.27,184.2,5.4289]
[1755772225988,2.55379146,184.27,184.19,8.3693]
[1755772226281,2.36379146,184.24,184.19,2.94]
[1755772226482,2.36379146,184.24,184.2,2.94]
[1755772226679,2.36379146,184.24,184.19,5.4293]
[1755772226876,2.36379146,184.24,184.22,2.94]
[1755772227482,2.36379146,184.24,184.23,2.94]
[1755772227684,2.36379146,184.27,184.24,2.94]
[1755772228578,2.36379146,184.27,184.18,2.94]
[1755772229685,2.36379146,184.27,184.22,2.94]
[1755772229884,2.36379146,184.27,184.23,2.94]
[1755772230190,2.36379146,184.27,184.21,5.4286]
[1755772230389,2.36379146,184.27,184.23,2.94]
[1755772230989,2.36379146,184.27,184.24,2.94]
[1755772231491,2.55379146,184.27,184.24,2.94]
[1755772232085,2.36379146,184.27,184.24,2.94]
[1755772232290,2.36379146,184.27,184.25,2.94]
[1755772233886,2.36379146,184.29,184.24,5.4278]
[1755772234085,2.36379146,184.29,184.26,2.94]
[1755772234486,2.36379146,184.29,184.27,2.94]
[1755772236190,2.55379146,184.29,184.25,2.94]
[1755772237085,2.55379146,184.29,184.24,5.4277]
[1755772237283,2.55379146,184.29,184.26,2.94]
[1755772238095,2.36379146,184.29,184.26,2.94]
[1755772238289,2.36379146,184.29,184.25,2.94]
[1755772238593,2.36379146,184.29,184.24,5.4277]
[1755772238794,2.36379146,184.29,184.26,2.94]
[1755772239900,2.55379146,184.29,184.26,2.94]
[1755772241904,2.36379146,184.29,184.27,2.94]
[1755772243300,2.36379146,184.29,184.23,5.4281]
[1755772243605,2.55379146,184.29,184.25,2.94]
[1755772244202,2.36379146,184.29,184.24,5.4279]
[1755772244403,2.36379146,184.29,184.26,2.94]
[1755772245500,0.19,184.32,184.15,10.861]
[1755772245501,2.36379146,184.31,184.21,2.36379146]
[1755772245701,2.36379146,184.31,184.28,2.94]
[1755772245894,2.36379146,184.31,184.29,2.94]
[1755772246100,2.36379146,184.33,184.23,2.36379146]
[1755772246399,497.94,184.37,184.24,2.94]
[1755772246400,2.36379146,184.31,184.24,2.94]
[1755772246600,2.36379146,184.28,184.25,2.94]
[1755772248801,0.19,184.3,184.25,2.94]
[1755772249007,2.55379146,184.29,184.25,2.94]
[1755772249211,0.19,184.28,184.25,2.94]
[1755772250209,2.36379146,184.29,184.25,2.94]
[1755772250406,2.55379146,184.29,184.25,2.94]
[1755772250705,0.19,184.28,184.25,2.94]
[1755772251709,2.36379146,184.29,184.26,2.94]
[1755772252906,476.7364065,184.37,184.23,2.88]
[1755772253110,2.36379146,184.33,184.24,2.88]
[1755772253404,2.36379146,184.33,184.25,5.4274]
[1755772253611,2.36379146,184.33,184.26,2.88]
[1755772254110,2.36379146,184.33,184.27,5.427]
[1755772254515,2.36379146,184.33,184.26,8.3072]
[1755772255004,2.36379146,184.33,184.26,2.88]
[1755772255206,2.36379146,184.33,184.2,6.00789852]
[1755772255207,2.36379146,184.29,184.23,2.88]
[1755772255606,2.36379146,184.29,184.23,8.3082]
[1755772256701,2.36379146,184.29,184.23,5.4282]
[1755772256904,2.36379146,184.29,184.2,4.54061493]
[1755772257110,2.36379146,184.29,184.22,2.88]
[1755772257310,2.36379146,184.29,184.22,7.42061493]
[1755772257510,2.36379146,184.29,184.25,2.88]
[1755772257712,2.36379146,184.31,184.27,2.88]
[1755772257911,2.36379146,184.31,184.28,2.88]
[1755772258407,0.17,184.3,184.24,8.3078]
[1755772259308,2.36379146,184.29,184.25,2.88]
[1755772259613,2.36379146,184.29,184.26,2.88]
[1755772260610,2.36379146,184.29,184.24,2.88]
[1755772260813,112.0364065,184.37,184.25,2.88]
[1755772261010,114.40019796,184.37,184.29,5.4262]
[1755772261205,114.40019796,184.37,184.3,2.88]
[1755772261611,0.17,184.34,184.3,2.88]
[1755772261813,2.36379146,184.35,184.28,2.88]
[1755772263115,2.36379146,184.35,184.3,5.426]
[1755772263317,114.40019796,184.37,184.27,4.54061493]
[1755772263518,112.0364065,184.37,184.28,2.88]
[1755772263710,114.40019796,184.37,184.28,2.88]
[1755772264507,114.40019796,184.37,184.31,5.4258]
[1755772264811,114.40019796,184.37,184.31,8.3058]
[1755772265207,112.0364065,184.37,184.3,2.36379146]
[1755772265413,112.0364065,184.37,184.31,2.88]
[1755772265815,2.36379146,184.39,184.31,2.88]
[1755772266611,2.53379146,184.42,184.31,4.54061493]
[1755772266807,2.53379146,184.42,184.33,2.88]
[1755772267610,2.53379146,184.42,184.36,5.4243]
[1755772267816,2.53379146,184.42,184.35,2.88]
[1755772268214,2.53379146,184.42,184.36,5.4243]
[1755772268417,0.17,184.45,184.36,2.88]
[1755772268614,2.53379146,184.45,184.36,2.88]
[1755772268819,2.36379146,184.43,184.36,2.88]
[1755772269120,116.88782289,184.48,184.32,2.36379146]
[1755772269121,2.36379146,184.41,184.34,2.88]
[1755772269324,2.36379146,184.41,184.34,8.3049]
[1755772270111,2.36379146,184.41,184.34,2.88]
[1755772270515,2.36379146,184.41,184.35,5.4244]
[1755772270915,2.53379146,184.41,184.37,2.88]
[1755772272715,2.36379146,184.43,184.32,2.36379146]
[1755772272921,2.36379146,184.45,184.37,2.88]
[1755772273721,2.36379146,184.45,184.37,8.3038]
[1755772274722,2.36379146,184.43,184.37,2.88]
[1755772275022,2.36379146,184.41,184.37,2.88]
[1755772275217,0.17,184.4,184.37,2.88]
[1755772278321,2.36379146,184.41,184.35,5.4247]
[1755772278517,2.36379146,184.41,184.38,2.88]
[1755772278723,2.54379146,184.41,184.38,2.88]
[1755772279227,0.18,184.38,184.34,2.88]
[1755772280225,2.36379146,184.37,184.34,2.88]
[1755772280437,0.18,184.36,184.3,2.88]
[1755772281126,2.36379146,184.37,184.3,2.88]
[1755772281537,2.36379146,184.38,184.31,5.4257]
[1755772281728,2.36379146,184.38,184.32,2.88]
[1755772282031,2.36379146,184.36,184.27,2.88]
[1755772282333,2.36379146,184.36,184.29,2.88]
[1755772283928,2.36379146,184.36,184.29,5.4264]
[1755772284133,2.36379146,184.36,184.3,2.86]
[1755772285936,2.36379146,184.36,184.3,5.426]
[1755772286129,2.36379146,184.36,184.31,2.86]
[1755772286322,2.36379146,184.36,184.3,5.426]
[1755772286524,2.36379146,184.36,184.34,2.86]
[1755772287437,0.17,184.41,184.28,2.36379146]
[1755772287630,2.36379146,184.4,184.31,2.86]
[1755772288225,2.36379146,184.4,184.35,5.4247]
[1755772288427,2.36379146,184.4,184.38,2.86]
[1755772290434,0.17,184.39,184.32,2.86]
[1755772290627,2.36379146,184.37,184.28,2.86]
[1755772291539,2.36379146,184.39,184.3,2.86]
[1755772291737,2.53379146,184.41,184.3,2.86]
[1755772291935,2.53379146,184.41,184.33,5.4252]
[1755772292236,2.53379146,184.41,184.34,2.86]
[1755772292641,2.36379146,184.37,184.28,4.54061493]
[1755772292935,117.83176929,184.48,184.19,391.8684]
[1755772292936,2.36379146,184.35,184.29,2.86]
[1755772293837,2.36379146,184.35,184.26,4.54061493]
[1755772294039,2.36379146,184.35,184.27,2.86]
[1755772294938,2.36379146,184.35,184.29,5.4263]
[1755772295338,2.36379146,184.35,184.32,2.86]
[1755772298144,2.53379146,184.35,184.32,2.86]
[1755772298540,2.53379146,184.35,184.28,2.86]
[1755772298744,2.36379146,184.31,184.28,2.86]
[1755772299042,2.36379146,184.31,184.24,4.54061493]
[1755772299043,2.36379146,184.29,184.25,2.86]
[1755772299348,2.36379146,184.29,184.21,2.86]
[1755772299349,0.17,184.28,184.21,2.86]
[1755772299543,2.36379146,184.29,184.23,5.4282]
[1755772299945,2.36379146,184.29,184.21,4.54061493]
[1755772300247,2.36379146,184.29,184.22,2.86]
[1755772300449,2.53379146,184.32,184.26,2.86]
[1755772300648,2.36379146,184.32,184.26,2.86]
[1755772301049,2.36379146,184.34,184.26,2.86]
[1755772301549,2.36379146,184.34,184.27,5.427]
[1755772302151,2.36379146,184.34,184.26,8.2873]
[1755772302639,2.36379146,184.32,184.26,2.86]
[1755772303552,2.36379146,184.32,184.26,8.2873]
[1755772304557,2.36379146,184.32,184.26,2.86]
[1755772305257,2.36379146,184.32,184.26,8.2872]
[1755772305450,2.36379146,184.32,184.23,7.4152525]
[1755772305647,2.36379146,184.32,184.24,2.86]
[1755772305852,2.36379146,184.32,184.24,7.4152525]
[1755772306147,2.36379146,184.36,184.27,2.86]
[1755772306458,2.53379146,184.36,184.3,5.4261]
[1755772307060,2.53379146,184.36,184.31,5.4258]
[1755772307358,2.53379146,184.36,184.32,2.86]
[1755772308454,2.36379146,184.36,184.31,5.4258]
[1755772308655,2.36379146,184.36,184.33,2.86]
[1755772309956,2.36379146,184.38,184.34,2.86]
[1755772310157,2.53379146,184.38,184.34,2.86]
[1755772310355,2.36379146,184.4,184.34,5.4249]
[1755772310551,2.36379146,184.4,184.37,2.86]
[1755772310959,2.53379146,184.4,184.37,2.86]
[1755772311456,2.53379146,184.4,184.34,2.86]
[1755772311656,2.53379146,184.4,184.34,8.2849]
[1755772311861,2.53379146,184.4,184.34,2.86]
[1755772312057,0.17,184.37,184.34,2.86]
[1755772314266,0.17,184.37,184.31,8.3658]
[1755772314461,0.17,184.37,184.31,2.94]
[1755772314965,0.17,184.37,184.32,5.4254]
[1755772315164,2.36379146,184.39,184.35,2.94]
[1755772315359,0.17,184.41,184.35,5.4245]
[1755772315360,2.53379146,184.41,184.35,5.4245]
[1755772315961,2.53379146,184.41,184.37,2.94]
[1755772316162,2.53379146,184.41,184.3,6.91904396]
[1755772316163,2.53379146,184.41,184.36,8.3643]
[1755772316363,2.36379146,184.41,184.37,2.94]
[1755772316565,2.36379146,184.41,184.38,2.94]
[1755772316966,2.53379146,184.41,184.38,2.94]
[1755772317165,2.53379146,184.41,184.36,5.4243]
[1755772317367,2.36379146,184.41,184.37,2.94]
[1755772317566,0.17,184.4,184.37,2.94]
[1755772317964,2.53379146,184.39,184.33,2.94]
[1755772318766,2.53379146,184.39,184.33,8.3651]
[1755772319266,2.53379146,184.39,184.33,2.94]
[1755772320268,2.53379146,184.39,184.3,7.4952525]
[1755772320571,2.36379146,184.36,184.3,2.94]
[1755772320771,2.36379146,184.36,184.31,5.4256]
[1755772320971,2.36379146,184.36,184.32,2.94]
[1755772321173,2.36379146,184.36,184.33,2.94]
[1755772321373,0.17,184.37,184.33,2.94]
[1755772323667,0.17,184.37,184.32,2.94]
[1755772323874,0.17,184.37,184.33,2.94]
[1755772324172,0.17,184.37,184.31,5.4256]
[1755772324371,0.17,184.37,184.33,2.94]
[1755772324871,0.17,184.37,184.34,2.94]
[1755772326673,2.36379146,184.39,184.35,2.94]
[1755772326873,2.53379146,184.39,184.35,2.94]
[1755772327569,2.36379146,184.39,184.33,2.94]
[1755772327770,2.36379146,184.41,184.33,2.94]
[1755772328175,2.36379146,184.41,184.35,5.4244]
[1755772328370,2.36379146,184.41,184.31,4.5552525]
[1755772328570,2.36379146,184.41,184.33,2.94]
[1755772329170,2.36379146,184.41,184.35,5.4244]
[1755772329371,2.36379146,184.41,184.36,2.94]
[1755772329567,2.36379146,184.44,184.36,2.94]
[1755772330477,2.36379146,184.42,184.36,2.94]
[1755772333577,2.36379146,184.42,184.38,2.94]
[1755772333777,2.36379146,184.42,184.37,5.4239]
[1755772333977,2.36379146,184.42,184.4,2.94]
[1755772334486,2.36379146,184.45,184.34,7.4952525]
[1755772334680,2.36379146,184.45,184.35,2.94]
[1755772335072,2.36379146,184.45,184.35,4.5552525]
[1755772335276,2.36379146,184.45,184.42,2.94]
[1755772336282,2.53379146,184.45,184.42,2.94]
[1755772336483,2.53379146,184.45,184.39,2.94]
[1755772337585,2.53379146,184.45,184.39,8.3635]
[1755772339884,2.53379146,184.45,184.39,2.94]
[1755772342393,2.53379146,184.45,184.39,8.3634]
[1755772345888,2.36379146,184.45,184.41,3.03]
[1755772346094,2.36379146,184.46,184.43,3.03]
[1755772346386,2.53379146,184.46,184.43,3.03]
[1755772346994,0.17,184.45,184.4,3.03]
[1755772347191,2.36379146,184.44,184.41,3.03]
[1755772347491,2.36379146,184.5,184.35,2.36379146]
[1755772347695,2.36379146,184.48,184.38,2.36379146]
[1755772347885,2.36379146,184.48,184.39,3.03]
[1755772348090,2.36379146,184.48,184.42,5.4224]
[1755772348397,2.36379146,184.48,184.44,3.03]
[1755772348695,2.36379146,184.48,184.45,3.03]
[1755772349895,2.36379146,184.48,184.43,5.4223]
[1755772350096,2.36379146,184.48,184.46,3.03]
[1755772350494,0.17,184.56,184.47,3.03]
[1755772350689,2.36379146,184.51,184.41,2.36379146]
[1755772350895,2.36379146,184.51,184.48,3.03]
[1755772351799,2.53379146,184.51,184.48,3.03]
[1755772354105,2.36379146,184.51,184.47,5.4209]
[1755772354303,2.36379146,184.51,184.48,3.03]
[1755772354508,2.36379146,184.51,184.49,3.03]
[1755772357009,2.53379146,184.51,184.44,3.03]
[1755772357206,2.36379146,184.48,184.45,3.03]
[1755772357913,2.36379146,184.48,184.46,3.03]
[1755772358910,2.36379146,184.48,184.39,3.03]
[1755772359212,2.36379146,184.48,184.43,3.03]
[1755772359411,2.36379146,184.48,184.44,3.03]
[1755772359611,2.53379146,184.48,184.42,3.03]
[1755772360003,2.36379146,184.48,184.42,3.03]
[1755772360612,2.36379146,184.48,184.42,8.4524]
[1755772360809,2.36379146,184.48,184.43,3.03]
[1755772361010,2.36379146,184.48,184.44,3.03]
[1755772361213,2.36379146,184.48,184.45,3.03]
[1755772361413,2.36379146,184.48,184.46,3.03]
[1755772364312,2.36379146,184.48,184.38,2.36379146]
[1755772364313,2.36379146,184.51,184.38,2.36379146]
[1755772364616,2.36379146,184.51,184.42,3.03]
[1755772364917,2.36379146,184.51,184.47,3.03]
[1755772365114,2.36379146,184.51,184.46,5.4214]
[1755772365310,2.36379146,184.51,184.5,3.03]
[1755772365518,136.10716211,184.59,184.39,4.5552525]
[1755772365519,2.36379146,184.55,184.52,3.03]
[1755772365821,2.53379146,184.55,184.52,3.03]
[1755772366012,0.17,184.54,184.48,5.4207]
[1755772366213,0.17,184.54,184.5,3.03]
[1755772366613,0.17,184.54,184.49,3.03]
[1755772366809,0.17,184.54,184.51,3.03]
[1755772367919,2.36379146,184.55,184.5,3.03]
[1755772368123,2.53379146,184.55,184.49,5.4205]
[1755772368321,2.53379146,184.55,184.51,3.03]
[1755772368623,2.53379146,184.55,184.52,3.03]
[1755772370017,0.17,184.54,184.5,3.03]
[1755772370211,0.17,184.53,184.5,3.03]
[1755772370618,2.36379146,184.55,184.5,5.4203]
[1755772370820,2.36379146,184.55,184.51,3.03]
[1755772371123,2.53379146,184.55,184.51,3.03]
[1755772371320,2.36379146,184.53,184.43,6.91904396]
[1755772371516,2.36379146,184.53,184.44,3.03]
[1755772372022,2.36379146,184.55,184.44,3.03]
[1755772373122,2.36379146,184.53,184.44,3.02]
[1755772373323,2.36379146,184.59,184.44,3.02]
[1755772373324,2.36379146,184.51,184.44,3.02]
[1755772374825,2.36379146,184.51,184.44,8.442]
[1755772375420,0.17,184.5,184.44,3.02]
[1755772377528,2.36379146,184.51,184.44,3.02]
[1755772377928,2.36379146,184.51,184.44,8.442]
[1755772378227,2.36379146,184.51,184.45,3.02]
[1755772379129,2.36379146,184.51,184.45,8.4417]
[1755772379522,2.36379146,184.51,184.41,4.5552525]
[1755772379723,2.36379146,184.55,184.5,3.02]
[1755772379929,2.36379146,184.55,184.44,6.91904396]
[1755772380223,2.36379146,184.55,184.52,3.02]
[1755772380424,2.36379146,184.55,184.44,6.91904396]
[1755772380629,2.53379146,184.55,184.51,3.02]
[1755772381129,2.53379146,184.55,184.45,4.5552525]
[1755772381330,2.53379146,184.55,184.52,3.02]
[1755772382525,2.36379146,184.53,184.46,3.02]
[1755772382729,2.53379146,184.51,184.47,3.02]
[1755772383232,2.53379146,184.51,184.45,5.4216]
[1755772383432,2.53379146,184.51,184.47,3.02]
[1755772386338,0.17,184.5,184.47,3.02]
[1755772386636,2.36379146,184.48,184.41,3.02]
[1755772386836,2.36379146,184.45,184.39,5.4234]
[1755772387041,2.36379146,184.45,184.42,3.02]
[1755772387229,2.36379146,184.45,184.37,4.5552525]
[1755772387430,2.36379146,184.45,184.44,3.02]
[1755772387638,0.17,184.49,184.45,3.02]
[1755772387639,2.36379146,184.48,184.45,3.02]
[1755772388233,2.36379146,184.48,184.43,3.02]
[1755772388430,2.36379146,184.48,184.45,3.02]
[1755772389235,2.36379146,184.48,184.46,3.02]
[1755772389537,2.36379146,184.48,184.47,3.02]
[1755772392338,2.36379146,184.48,184.44,3.02]
[1755772392535,2.36379146,184.48,184.43,5.4222]
[1755772392733,2.36379146,184.48,184.45,3.02]
[1755772393334,2.36379146,184.48,184.42,3.02]
[1755772393638,2.36379146,184.45,184.42,3.02]
[1755772394338,2.36379146,184.45,184.43,3.02]
[1755772395038,2.53379146,184.45,184.39,3.02]
[1755772395638,2.53379146,184.45,184.39,8.4435]
[1755772396333,2.53379146,184.45,184.39,3.02]
[1755772396543,2.36379146,184.42,184.36,4.5552525]
[1755772396838,2.36379146,184.39,184.36,3.02]
[1755772397037,2.53379146,184.39,184.36,3.02]
[1755772397738,2.53379146,184.39,184.33,3.02]
[1755772398341,2.53379146,184.39,184.33,8.4453]
[1755772398542,2.53379146,184.39,184.33,3.02]
[1755772400539,2.36379146,184.36,184.33,3.02]
[1755772400746,2.53379146,184.36,184.3,3.02]
[1755772403442,2.36379146,184.36,184.31,2.98]
[1755772403646,2.36379146,184.36,184.33,2.98]
[1755772403846,2.36379146,184.36,184.34,2.98]
[1755772404147,2.36379146,184.36,184.3,5.426]
[1755772404439,2.36379146,184.36,184.31,5.4258]
[1755772404648,2.36379146,184.36,184.33,2.98]
[1755772407046,0.18,184.46,184.32,2.98]
[1755772407248,2.36379146,184.4,184.32,2.98]
[1755772407450,2.36379146,184.38,184.32,2.98]
[1755772408448,2.36379146,184.38,184.33,5.4251]
[1755772408645,2.36379146,184.38,184.32,2.98]
[1755772408646,2.36379146,184.38,184.27,6.91222]
[1755772408851,2.36379146,184.38,184.36,2.98]
[1755772409352,2.36379146,184.38,184.28,2.98]
[1755772409556,2.36379146,184.38,184.3,2.98]
[1755772410350,2.36379146,184.38,184.33,5.4251]
[1755772410552,2.36379146,184.38,184.35,2.98]
[1755772410948,2.54379146,184.38,184.35,2.98]
[1755772411545,2.36379146,184.38,184.36,2.98]
[1755772411745,2.36379146,184.39,184.36,2.98]
[1755772413246,2.36379146,184.39,184.37,2.98]
[1755772413452,2.36379146,184.42,184.3,2.98]
[1755772413655,2.36379146,184.42,184.38,2.98]
[1755772413849,2.36379146,184.42,184.39,2.98]
[1755772414049,2.54379146,184.42,184.39,2.98]
[1755772416553,2.54379146,184.42,184.32,2.36379146]
[1755772416554,2.36379146,184.42,184.32,2.36379146]
[1755772416760,2.36379146,184.42,184.33,2.98]
[1755772416962,2.36379146,184.42,184.38,5.4236]
[1755772417160,2.36379146,184.42,184.4,2.98]
[1755772417657,2.36379146,184.46,184.35,2.36379146]
[1755772417863,2.54379146,184.46,184.42,2.98]
[1755772418254,2.36379146,184.46,184.42,2.98]
[1755772418455,0.18,184.45,184.42,2.98]
[1755772419157,0.18,184.45,184.39,8.4034]
[1755772419360,0.18,184.45,184.39,2.98]
[1755772420064,2.36379146,184.43,184.39,2.98]
[1755772420264,0.18,184.42,184.39,2.98]
[1755772421259,2.54379146,184.43,184.36,8.4043]
[1755772421564,2.54379146,184.43,184.37,5.4241]
[1755772421764,2.54379146,184.43,184.39,2.98]
[1755772422063,2.54379146,184.43,184.37,5.4241]
[1755772422265,2.54379146,184.43,184.38,2.98]
[1755772422560,2.54379146,184.43,184.37,5.4241]
[1755772422761,2.54379146,184.43,184.39,2.98]
[1755772423264,2.54379146,184.43,184.38,2.98]
[1755772423459,2.36379146,184.43,184.36,5.4243]
[1755772423665,2.36379146,184.43,184.35,2.98]
[1755772423962,2.54379146,184.43,184.35,2.98]
[1755772424362,2.54379146,184.41,184.35,2.98]
[1755772424563,2.54379146,184.39,184.35,2.98]
[1755772425863,2.54379146,184.39,184.33,5.4252]
[1755772425864,2.54379146,184.39,184.34,8.4049]
[1755772426065,2.54379146,184.39,184.35,2.98]
[1755772426258,2.36379146,184.39,184.35,2.98]
[1755772426564,2.36379146,184.39,184.34,5.4249]
[1755772426565,2.36379146,184.39,184.37,2.98]
[1755772426757,2.36379146,184.42,184.35,2.98]
[1755772427364,2.36379146,184.42,184.32,4.54842854]
[1755772427663,2.36379146,184.42,184.39,2.98]
[1755772427864,0.18,184.45,184.33,2.98]
[1755772428059,2.36379146,184.43,184.37,8.4039]
[1755772429966,2.36379146,184.44,184.37,8.4039]
[1755772430566,2.36379146,184.44,184.34,4.54842854]
[1755772430767,2.36379146,184.44,184.42,2.98]
[1755772432068,2.36379146,184.44,184.38,5.4237]
[1755772432265,2.36379146,184.44,184.38,8.4037]
[1755772433170,2.36379146,184.45,184.41,2.99]
[1755772433469,2.36379146,184.45,184.42,2.99]
[1755772433865,2.53379146,184.45,184.42,2.99]
[1755772435467,2.36379146,184.45,184.37,7.53842854]
[1755772435662,2.36379146,184.45,184.38,7.53842854]
[1755772435970,2.36379146,184.45,184.39,2.99]
[1755772436166,2.53379146,184.48,184.43,2.99]
[1755772436366,2.53379146,184.48,184.45,2.99]
[1755772438273,2.36379146,184.48,184.44,2.99]
[1755772438474,2.36379146,184.48,184.45,2.99]
[1755772438672,2.53379146,184.48,184.45,2.99]
[1755772438873,0.17,184.45,184.39,2.99]
[1755772439074,2.36379146,184.41,184.39,2.99]
[1755772440570,2.36379146,184.41,184.34,4.54842854]
[1755772440770,2.36379146,184.38,184.35,2.99]
[1755772440977,2.53379146,184.38,184.35,2.99]
[1755772442065,2.36379146,184.38,184.36,2.99]
[1755772443778,2.36379146,184.38,184.31,4.54842854]
[1755772444078,2.36379146,184.35,184.32,2.99]
[1755772444377,2.36379146,184.35,184.33,2.99]
[1755772444576,2.36379146,184.35,184.34,2.99]
[1755772450177,2.36379146,184.35,184.3,9.97432854]
[1755772450476,2.36379146,184.33,184.28,4.54842854]